Workbook

Sheet ทั่วไป (hidden)
A1: สถิติจำนวนนักเรียนโรงเรียนรุจิรพัฒน์
A2: ประจำวันที่.................... เดือน................................................พ.ศ. ..........................
A3: ชั้น | E3: จำนวนนักเรียนเต็ม | H3: มาเรียน | K3: ขาดเรียน | N3: หมายเหตุ
E4: ชาย | F4: หญิง | G4: รวม | H4: ชาย | I4: หญิง | J4: รวม | K4: ชาย | L4: หญิง | M4: รวม
A5: อนุบาล 2/1 | E5: 12 | F5: 9 | G5: =SUM(E5:F5) -> 21
A6: อนุบาล 2/2 | E6: 11 | F6: 9 | G6: =SUM(E6:F6) -> 20
A7: รวมอนุบาล 2 | E7: =SUM(E5:E6) -> 23 | F7: =SUM(F5:F6) -> 18 | G7: =SUM(G5:G6) -> 41
A8: อนุบาล 3/1 | E8: 11 | F8: 14 | G8: =SUM(E8:F8) -> 25
A9: อนุบาล 3/2 | E9: 14 | F9: 10 | G9: =SUM(E9:F9) -> 24
A10: รวมอนุบาล 3 | E10: =SUM(E8:E9) -> 25 | F10: =SUM(F8:F9) -> 24 | G10: =SUM(G8:G9) -> 49
A11: รวมก่อนประถม | E11: =E7+E10 -> 48 | F11: =F7+F10 -> 42 | G11: =SUM(E11:F11) -> 90
A12: ประถมศึกษาปีที่ 1/1 | E12: 18 | F12: 17 | G12: =SUM(E12:F12) -> 35
A13: ประถมศึกษาปีที่ 1/2 | E13: 16 | F13: 18 | G13: =SUM(E13:F13) -> 34
A14: ประถมศึกษาปีที่ 1/3 | E14: 19 | F14: 16 | G14: =SUM(E14:F14) -> 35
A15: ประถมศึกษาปีที่ 1/4 | E15: 20 | F15: 15 | G15: =SUM(E15:F15) -> 35
A16: รวมประถมศึกษาปีที่ 1 | E16: =SUM(E12:E15) -> 73 | F16: =SUM(F12:F15) -> 66 | G16: =SUM(G12:G15) -> 139
A17: ประถมศึกษาปีที่ 2/1 | E17: 17 | F17: 12 | G17: =SUM(E17:F17) -> 29
A18: ประถมศึกษาปีที่ 2/2 | E18: 16 | F18: 15 | G18: =SUM(E18:F18) -> 31
A19: ประถมศึกษาปีที่ 2/3 | E19: 17 | F19: 12 | G19: =SUM(E19:F19) -> 29
A20: ประถมศึกษาปีที่ 2/4 | E20: 15 | F20: 13 | G20: =SUM(E20:F20) -> 28
A21: รวมประถมศึกษาปีที่ 2 | E21: =SUM(E17:E20) -> 65 | F21: =SUM(F17:F20) -> 52 | G21: =SUM(G17:G20) -> 117
A22: ประถมศึกษาปีที่ 3/1 | E22: 18 | F22: 15 | G22: =SUM(E22:F22) -> 33
A23: ประถมศึกษาปีที่ 3/2 | E23: 16 | F23: 15 | G23: =SUM(E23:F23) -> 31
A24: ประถมศึกษาปีที่ 3/3 | E24: 14 | F24: 17 | G24: =SUM(E24:F24) -> 31
A25: ประถมศึกษาปีที่ 3/4 | E25: 15 | F25: 16 | G25: =SUM(E25:F25) -> 31
A26: รวมประถมศึกษาปีที่ 3 | E26: =SUM(E22:E25) -> 63 | F26: =SUM(F22:F25) -> 63 | G26: =SUM(G22:G25) -> 126
A27: ประถมศึกษาปีที่ 4/1 | E27: 16 | F27: 11 | G27: =SUM(E27:F27) -> 27
A28: ประถมศึกษาปีที่ 4/2 | E28: 15 | F28: 12 | G28: =SUM(E28:F28) -> 27
A29: ประถมศึกษาปีที่ 4/3 | E29: 18 | F29: 8 | G29: =SUM(E29:F29) -> 26
A30: ประถมศึกษาปีที่ 4/4 | E30: 15 | F30: 14 | G30: =SUM(E30:F30) -> 29
A31: รวมประถมศึกษาปีที่ 4 | E31: =SUM(E27:E30) -> 64 | F31: =SUM(F27:F30) -> 45 | G31: 109
A32: ประถมศึกษาปีที่ 5/1 | E32: 17 | F32: 16 | G32: =SUM(E32:F32) -> 33
A33: ประถมศึกษาปีที่ 5/2 | E33: 11 | F33: 19 | G33: =SUM(E33:F33) -> 30
A34: ประถมศึกษาปีที่ 5/3 | E34: 17 | F34: 13 | G34: =SUM(E34:F34) -> 30
A35: ประถมศึกษาปีที่ 5/4 | E35: 16 | F35: 13 | G35: =SUM(E35:F35) -> 29
A36: รวมประถมศึกษาปีที่ 5 | E36: =SUM(E32:E35) -> 61 | F36: =SUM(F32:F35) -> 61 | G36: 122
A37: ประถมศึกษาปีที่ 6/1 | E37: 8 | F37: 16 | G37: =SUM(E37:F37) -> 24
A38: ประถมศึกษาปีที่ 6/2 | E38: 12 | F38: 12 | G38: =SUM(E38:F38) -> 24
A39: ประถมศึกษาปีที่ 6/3 | E39: 9 | F39: 13 | G39: =SUM(E39:F39) -> 22
A40: ประถมศึกษาปีที่ 6/4 | E40: 12 | F40: 13 | G40: =SUM(E40:F40) -> 25
A41: รวมประถมศึกษาปีที่ 6 | E41: =SUM(E37:E40) -> 41 | F41: =SUM(F37:F40) -> 54 | G41: =SUM(G37:G40) -> 95
A42: รวมประถม | E42: =SUM(E16,E21,E26,E31,E36,E41) -> 367 | F42: =SUM(F16,F21,F26,F31,F36,F41) -> 341 | G42: =SUM(G16,G21,G26,G31,G36,G41) -> 708
A43: มัธยมศึกษาปีที่ 1/1 | E43: 15 | F43: 20 | G43: =SUM(E43:F43) -> 35
A44: มัธยมศึกษาปีที่ 1/2 | E44: 16 | F44: 17 | G44: =SUM(E44:F44) -> 33
A45: มัธยมศึกษาปีที่ 1/3 | E45: 17 | F45: 18 | G45: =SUM(E45:F45) -> 35
A46: มัธยมศึกษาปีที่ 1/4 | E46: 17 | F46: 14 | G46: =SUM(E46:F46) -> 31
A47: รวมมัธยมศึกษาปีที่ 1 | E47: =SUM(E43:E46) -> 65 | F47: =SUM(F43:F46) -> 69 | G47: 134
A48: มัธยมศึกษาปีที่ 2/1 | E48: 15 | F48: 14 | G48: =SUM(E48:F48) -> 29
A49: มัธยมศึกษาปีที่ 2/2 | E49: 14 | F49: 15 | G49: =SUM(E49:F49) -> 29
A50: มัธยมศึกษาปีที่ 2/3 | E50: 18 | F50: 15 | G50: =SUM(E50:F50) -> 33
A51: มัธยมศึกษาปีที่ 2/4 | E51: 14 | F51: 18 | G51: =SUM(E51:F51) -> 32
A52: รวมมัธยมศึกษาปีที่ 2 | E52: =SUM(E48:E51) -> 61 | F52: =SUM(F48:F51) -> 62 | G52: 123
A53: มัธยมศึกษาปีที่ 3/1 | E53: 13 | F53: 17 | G53: =SUM(E53:F53) -> 30
A54: มัธยมศึกษาปีที่ 3/2 | E54: 13 | F54: 14 | G54: =SUM(E54:F54) -> 27
A55: มัธยมศึกษาปีที่ 3/3 | E55: 16 | F55: 14 | G55: =SUM(E55:F55) -> 30
A56: มัธยมศึกษาปีที่ 3/4 | E56: 16 | F56: 13 | G56: =SUM(E56:F56) -> 29
A57: รวมมัธยมศึกษาปีที่ 3 | E57: =SUM(E53:E56) -> 58 | F57: =SUM(F53:F56) -> 58 | G57: 116
A58: รวมมัธยม | E58: =SUM(E47,E52,E57) -> 184 | F58: =SUM(F47,F52,F57) -> 189 | G58: =SUM(G47,G52,G57) -> 373
A59: รวมทั้งหมด | E59: =SUM(E11,E42,E58) -> 599 | F59: =SUM(F11,F42,F58) -> 572 | G59: =SUM(G11,G42,G58) -> 1171 | N59: คิดเป็นร้อยละ
A61: บันทึกประจำวัน | C61: ...........................................................................................................................................................................................................................
C62: ...........................................................................................................................................................................................................................
A65: ลงชื่อ | G65: ลงชื่อ | M65: ลงชื่อ
A66: (.....................................................) | G66: (.....................................................) | M66: (.....................................................)
A67: ลงชื่อ | G67: ลงชื่อ | M67: ลงชื่อ
A68: (.....................................................) | G68: (.....................................................) | M68: (.....................................................)
A69: ลงชื่อ | G69: ลงชื่อ | M69: ลงชื่อ
A70: (.....................................................) | G70: (.....................................................) | M70: (.....................................................)
A71: ลงชื่อ | M71: ลงชื่อ
A72: (.....................................................) | M72: (.....................................................)
G73: (ดร.พจนพร จิตเจริญทวีโชค)
G74: ผู้อำนวยการโรงเรียนรุจิรพัฒน์ | K74: ผู้ตรวจ

Sheet พุธ (hidden)
A1: สถิติจำนวนนักเรียนโรงเรียนรุจิรพัฒน์
A2: ประจำวันที่.......27........ เดือน..............มีนาคม.................พ.ศ. .......2564........
A3: ชั้น | E3: จำนวนนักเรียนเต็ม | H3: มาเรียน | K3: ขาดเรียน | N3: หมายเหตุ
E4: ชาย | F4: หญิง | G4: รวม | H4: ชาย | I4: หญิง | J4: รวม | K4: ชาย | L4: หญิง | M4: รวม
A5: อนุบาล 2/1 | E5: 12 | F5: 9 | G5: =SUM(E5:F5) -> 21 | H5: 7 | I5: 4 | J5: =H5+I5 -> 11 | K5: =E5-H5 -> 5 | L5: =F5-I5 -> 5 | M5: =G5-J5 -> 10
A6: อนุบาล 2/2 | E6: 11 | F6: 9 | G6: =SUM(E6:F6) -> 20 | H6: 8 | I6: 6 | J6: 14 | K6: =E6-H6 -> 3 | L6: =F6-I6 -> 3 | M6: =G6-J6 -> 6
A7: รวมอนุบาล 2 | E7: =SUM(E5:E6) -> 23 | F7: =SUM(F5:F6) -> 18 | G7: =SUM(G5:G6) -> 41 | H7: =SUM(H5:H6) -> 15 | I7: =SUM(I5:I6) -> 10 | J7: 25 | K7: 8 | L7: 8 | M7: =G7-J7 -> 16
A8: อนุบาล 3/1 | E8: 11 | F8: 14 | G8: =SUM(E8:F8) -> 25 | H8: 4 | I8: 7 | J8: =H8+I8 -> 11 | K8: =E8-H8 -> 7 | L8: =F8-I8 -> 7 | M8: =G8-J8 -> 14
A9: อนุบาล 3/2 | E9: 14 | F9: 10 | G9: =SUM(E9:F9) -> 24 | H9: 7 | I9: 6 | J9: =H9+I9 -> 13 | K9: 7 | L9: 4 | M9: 11
A10: รวมอนุบาล 3 | E10: =SUM(E8:E9) -> 25 | F10: =SUM(F8:F9) -> 24 | G10: =SUM(G8:G9) -> 49 | H10: =SUM(H8:H9) -> 11 | I10: =SUM(I8:I9) -> 13 | J10: =H10+I10 -> 24 | K10: 14 | L10: 11 | M10: 25
A11: รวมก่อนประถม | E11: =E7+E10 -> 48 | F11: =F7+F10 -> 42 | G11: =SUM(E11:F11) -> 90 | H11: =H7+H10 -> 26 | I11: =I7+I10 -> 23 | J11: =H11+I11 -> 49 | K11: =E11-H11 -> 22 | L11: 19 | M11: 41
A12: ประถมศึกษาปีที่ 1/1 | E12: 18 | F12: 17 | G12: =SUM(E12:F12) -> 35 | H12: 16 | I12: 13 | J12: 29 | K12: 2 | L12: 4 | M12: 6
A13: ประถมศึกษาปีที่ 1/2 | E13: 16 | F13: 18 | G13: =SUM(E13:F13) -> 34 | H13: 8 | I13: 6 | J13: 14 | K13: 8 | L13: 12 | M13: 20
A14: ประถมศึกษาปีที่ 1/3 | E14: 19 | F14: 16 | G14: =SUM(E14:F14) -> 35 | H14: 13 | I14: 13 | J14: 26 | K14: 6 | L14: 3 | M14: 9
A15: ประถมศึกษาปีที่ 1/4 | E15: 20 | F15: 15 | G15: =SUM(E15:F15) -> 35 | H15: 13 | I15: 10 | J15: 23 | K15: 7 | L15: 5 | M15: 12
A16: รวมประถมศึกษาปีที่ 1 | E16: =SUM(E12:E15) -> 73 | F16: =SUM(F12:F15) -> 66 | G16: =SUM(G12:G15) -> 139 | H16: =SUM(H12:H15) -> 50 | I16: 42 | J16: 92 | K16: 23 | L16: 24 | M16: 47
A17: ประถมศึกษาปีที่ 2/1 | E17: 17 | F17: 12 | G17: =SUM(E17:F17) -> 29 | H17: 16 | I17: 10 | J17: 26 | K17: 1 | L17: 2 | M17: 3
A18: ประถมศึกษาปีที่ 2/2 | E18: 16 | F18: 15 | G18: =SUM(E18:F18) -> 31 | H18: 12 | I18: 14 | J18: 26 | K18: 4 | L18: 1 | M18: 5
A19: ประถมศึกษาปีที่ 2/3 | E19: 17 | F19: 12 | G19: =SUM(E19:F19) -> 29 | H19: 9 | I19: 10 | J19: 19 | K19: 8 | L19: 2 | M19: 10
A20: ประถมศึกษาปีที่ 2/4 | E20: 15 | F20: 13 | G20: =SUM(E20:F20) -> 28 | H20: 9 | I20: 8 | J20: 17 | K20: 6 | L20: 5 | M20: 11
A21: รวมประถมศึกษาปีที่ 2 | E21: =SUM(E17:E20) -> 65 | F21: =SUM(F17:F20) -> 52 | G21: =SUM(G17:G20) -> 117 | H21: =SUM(H17:H20) -> 46 | I21: 42 | J21: 88 | K21: 19 | L21: 10 | M21: 29
A22: ประถมศึกษาปีที่ 3/1 | E22: 18 | F22: 15 | G22: =SUM(E22:F22) -> 33 | H22: 12 | I22: 11 | J22: 23 | K22: 6 | L22: 4 | M22: 10
A23: ประถมศึกษาปีที่ 3/2 | E23: 16 | F23: 15 | G23: =SUM(E23:F23) -> 31 | H23: 12 | I23: 6 | J23: 18 | K23: 4 | L23: 9 | M23: 13
A24: ประถมศึกษาปีที่ 3/3 | E24: 14 | F24: 17 | G24: =SUM(E24:F24) -> 31 | H24: 7 | I24: 13 | J24: 20 | K24: 7 | L24: 4 | M24: 11
A25: ประถมศึกษาปีที่ 3/4 | E25: 15 | F25: 16 | G25: =SUM(E25:F25) -> 31 | H25: 9 | I25: 11 | J25: 20 | K25: 6 | L25: 5 | M25: 11
A26: รวมประถมศึกษาปีที่ 3 | E26: =SUM(E22:E25) -> 63 | F26: =SUM(F22:F25) -> 63 | G26: =SUM(G22:G25) -> 126 | H26: =SUM(H22:H25) -> 40 | I26: 41 | J26: 81 | K26: 23 | L26: 22 | M26: 45
A27: ประถมศึกษาปีที่ 4/1 | E27: 16 | F27: 11 | G27: =SUM(E27:F27) -> 27 | H27: 10 | I27: 10 | J27: 20 | K27: 6 | L27: 1 | M27: 7
A28: ประถมศึกษาปีที่ 4/2 | E28: 15 | F28: 12 | G28: =SUM(E28:F28) -> 27 | H28: 9 | I28: 6 | J28: 15 | K28: 6 | L28: 6 | M28: 12
A29: ประถมศึกษาปีที่ 4/3 | E29: 18 | F29: 8 | G29: =SUM(E29:F29) -> 26 | H29: 12 | I29: 8 | J29: 20 | K29: 6 | L29: 0 | M29: 6
A30: ประถมศึกษาปีที่ 4/4 | E30: 15 | F30: 14 | G30: =SUM(E30:F30) -> 29 | H30: 7 | I30: 13 | J30: 20 | K30: 8 | L30: 1 | M30: 9
A31: รวมประถมศึกษาปีที่ 4 | E31: =SUM(E27:E30) -> 64 | F31: =SUM(F27:F30) -> 45 | G31: 109 | H31: =SUM(H27:H30) -> 38 | I31: 37 | J31: 75 | K31: 26 | L31: 8 | M31: 34
A32: ประถมศึกษาปีที่ 5/1 | E32: 17 | F32: 16 | G32: =SUM(E32:F32) -> 33 | H32: 13 | I32: 15 | J32: 28 | K32: 4 | L32: 1 | M32: 5
A33: ประถมศึกษาปีที่ 5/2 | E33: 11 | F33: 19 | G33: =SUM(E33:F33) -> 30 | H33: 10 | I33: 14 | J33: 24 | K33: 1 | L33: 5 | M33: 6
A34: ประถมศึกษาปีที่ 5/3 | E34: 17 | F34: 13 | G34: =SUM(E34:F34) -> 30 | H34: 9 | I34: 10 | J34: 19 | K34: 8 | L34: 3 | M34: 11
A35: ประถมศึกษาปีที่ 5/4 | E35: 16 | F35: 13 | G35: =SUM(E35:F35) -> 29 | H35: 10 | I35: 12 | J35: 22 | K35: 6 | L35: 1 | M35: 7
A36: รวมประถมศึกษาปีที่ 5 | E36: =SUM(E32:E35) -> 61 | F36: =SUM(F32:F35) -> 61 | G36: 122 | H36: =SUM(H32:H35) -> 42 | I36: 51 | J36: 93 | K36: 19 | L36: 10 | M36: 29
A37: ประถมศึกษาปีที่ 6/1 | E37: 8 | F37: 16 | G37: =SUM(E37:F37) -> 24 | H37: 5 | I37: 11 | J37: 16 | K37: 3 | L37: 5 | M37: 8
A38: ประถมศึกษาปีที่ 6/2 | E38: 12 | F38: 12 | G38: =SUM(E38:F38) -> 24 | H38: 7 | I38: 8 | J38: 15 | K38: 5 | L38: 4 | M38: 9
A39: ประถมศึกษาปีที่ 6/3 | E39: 9 | F39: 13 | G39: =SUM(E39:F39) -> 22 | H39: 7 | I39: 13 | J39: 20 | K39: 2 | L39: 0 | M39: 2
A40: ประถมศึกษาปีที่ 6/4 | E40: 12 | F40: 13 | G40: =SUM(E40:F40) -> 25 | H40: 6 | I40: 11 | J40: 17 | K40: 6 | L40: 2 | M40: 8
A41: รวมประถมศึกษาปีที่ 6 | E41: =SUM(E37:E40) -> 41 | F41: =SUM(F37:F40) -> 54 | G41: =SUM(G37:G40) -> 95 | H41: =SUM(H37:H40) -> 25 | I41: =SUM(I37:I40) -> 43 | J41: 68 | K41: 16 | L41: 11 | M41: 27
A42: รวมประถม | E42: =SUM(E16,E21,E26,E31,E36,E41) -> 367 | F42: =SUM(F16,F21,F26,F31,F36,F41) -> 341 | G42: =SUM(G16,G21,G26,G31,G36,G41) -> 708 | H42: =SUM(H16,H21,H26,H31,H36,H41) -> 241 | I42: =SUM(I16,I21,I26,I31,I36,I41) -> 256 | J42: =H42+I42 -> 497 | K42: 126 | L42: 85 | M42: 211
A43: มัธยมศึกษาปีที่ 1/1 | E43: 15 | F43: 20 | G43: =SUM(E43:F43) -> 35 | H43: 13 | I43: 18 | J43: 31 | K43: 2 | L43: 2 | M43: 4
A44: มัธยมศึกษาปีที่ 1/2 | E44: 16 | F44: 17 | G44: =SUM(E44:F44) -> 33 | H44: 8 | I44: 11 | J44: 19 | K44: 8 | L44: 6 | M44: 14
A45: มัธยมศึกษาปีที่ 1/3 | E45: 17 | F45: 18 | G45: =SUM(E45:F45) -> 35 | H45: 9 | I45: 15 | J45: 24 | K45: 8 | L45: 3 | M45: 11
A46: มัธยมศึกษาปีที่ 1/4 | E46: 17 | F46: 14 | G46: =SUM(E46:F46) -> 31 | H46: 9 | I46: 10 | J46: 19 | K46: 8 | L46: 4 | M46: 12
A47: รวมมัธยมศึกษาปีที่ 1 | E47: =SUM(E43:E46) -> 65 | F47: =SUM(F43:F46) -> 69 | G47: 134 | H47: =SUM(H43:H46) -> 39 | I47: 54 | J47: 93 | K47: 26 | L47: 15 | M47: 41
A48: มัธยมศึกษาปีที่ 2/1 | E48: 15 | F48: 14 | G48: =SUM(E48:F48) -> 29 | H48: 11 | I48: 12 | J48: 23 | K48: 4 | L48: 2 | M48: 6
A49: มัธยมศึกษาปีที่ 2/2 | E49: 14 | F49: 15 | G49: =SUM(E49:F49) -> 29 | H49: 10 | I49: 7 | J49: 17 | K49: 4 | L49: 8 | M49: 12 | R49: ชุด ก (ห้อง 2 ห้อง 4) | S49: ชุด ข (ห้อง 1 ห้อง 3)
A50: มัธยมศึกษาปีที่ 2/3 | E50: 18 | F50: 15 | G50: =SUM(E50:F50) -> 33 | H50: 11 | I50: 11 | J50: 22 | K50: 7 | L50: 4 | M50: 11 | R50: ออนแฮนด์ | S50: โรงเรียน
A51: มัธยมศึกษาปีที่ 2/4 | E51: 14 | F51: 18 | G51: =SUM(E51:F51) -> 32 | H51: 7 | I51: 12 | J51: 19 | K51: 7 | L51: 6 | M51: 13 | Q51: จำนวน | R51: =J13+J15+J18+J20+J23+J25+J28+J30+J33+J35+J44+J46+J49+J51 -> 273 | S51: =J59-R51 -> 515
A52: รวมมัธยมศึกษาปีที่ 2 | E52: =SUM(E48:E51) -> 61 | F52: =SUM(F48:F51) -> 62 | G52: 123 | H52: =SUM(H48:H51) -> 39 | I52: 42 | J52: 81 | K52: 22 | L52: 20 | M52: 42
A53: มัธยมศึกษาปีที่ 3/1 | E53: 13 | F53: 17 | G53: =SUM(E53:F53) -> 30 | H53: 6 | I53: 10 | J53: 16 | K53: 7 | L53: 7 | M53: 14 | Q53: ร้อยละ | R53: =R51*100/J59 -> 34.64467005 | S53: =S51*100/J59 -> 65.35532995
A54: มัธยมศึกษาปีที่ 3/2 | E54: 13 | F54: 14 | G54: =SUM(E54:F54) -> 27 | H54: 5 | I54: 9 | J54: 14 | K54: 8 | L54: 5 | M54: 13
A55: มัธยมศึกษาปีที่ 3/3 | E55: 16 | F55: 14 | G55: =SUM(E55:F55) -> 30 | H55: 12 | I55: 4 | J55: 16 | K55: 4 | L55: 10 | M55: 14 | R55: ชุด ข (ห้อง 1 ห้อง 3) | S55: ชุด ก (ห้อง 2 ห้อง 4)
A56: มัธยมศึกษาปีที่ 3/4 | E56: 16 | F56: 13 | G56: =SUM(E56:F56) -> 29 | H56: 14 | I56: 8 | J56: =H56+I56 -> 22 | K56: =E56-H56 -> 2 | L56: =F56-I56 -> 5 | M56: =G56-J56 -> 7 | R56: ออนแฮนด์ | S56: โรงเรียน
A57: รวมมัธยมศึกษาปีที่ 3 | E57: =SUM(E53:E56) -> 58 | F57: =SUM(F53:F56) -> 58 | G57: 116 | H57: =SUM(H53:H56) -> 37 | I57: =SUM(I53:I56) -> 31 | J57: =H57+I57 -> 68 | K57: =E57-H57 -> 21 | L57: 27 | M57: 48 | Q57: จำนวน | R57: =J12+J14+J17+J19+J22+J24+J27+J29+J32+J34+J43+J45+J48+J50 -> 330 | S57: =J59-R57 -> 458
A58: รวมมัธยม | E58: =SUM(E47,E52,E57) -> 184 | F58: =SUM(F47,F52,F57) -> 189 | G58: =SUM(G47,G52,G57) -> 373 | H58: =SUM(H47,H52,H57) -> 115 | I58: 127 | J58: 242 | K58: 69 | L58: 62 | M58: 131
A59: รวมทั้งหมด | E59: =SUM(E11,E42,E58) -> 599 | F59: =SUM(F11,F42,F58) -> 572 | G59: =SUM(G11,G42,G58) -> 1171 | H59: =SUM(H11,H42,H58) -> 382 | I59: =SUM(I11,I42,I58) -> 406 | J59: =H59+I59 -> 788 | K59: =E59-H59 -> 217 | L59: 166 | M59: 383 | N59: คิดเป็นร้อยละ | O59: =J59*100/G59 -> 67.29291204 | Q59: ร้อยละ | R59: =R57*100/J59 -> 41.87817259 | S59: =S57*100/J59 -> 58.12182741
A61: บันทึกประจำวัน | C61: ...........................................................................................................................................................................................................................
A62: ......................................................................................................................................................................................................................................................
A65: ลงชื่อ | G65: ลงชื่อ | M65: ลงชื่อ
A66: (นางสาวพรศิริ กลิ่นบำรุง) | G66: (นางพัทธนันท์ เกียรติ์ภูมิพัฒน์) | M66: (นางสาวิตตรี บางวัด)
A67: ลงชื่อ | G67: ลงชื่อ | M67: ลงชื่อ
A68: (นางชนรดา ชัยมงคล) | G68: (นายภูมินทร์ ขุนเณร) | M68: (นายสมบูรณ์ เตียนขุนทด)
A69: ลงชื่อ | G69: ลงชื่อ | M69: ลงชื่อ
A70: (นางสาวจีรวรรณ ชัยวิเศษ) | G70: (นางสาวจริยา คำเกลี้ยง) | M70: (นายสมัย พุเบาะ)
A71: ลงชื่อ
A72: (นางสาวเพ็ญนภา ทนทาน)
G73: (ดร.พจนพร จิตเจริญทวีโชค)
G74: ผู้อำนวยการโรงเรียนรุจิรพัฒน์ | K74: ผู้ตรวจ

Sheet วันพุธ
A1: สถิติจำนวนนักเรียนโรงเรียนรุจิรพัฒน์
A2: =TODAY() -> 2021-07-23
A3: ชั้น | E3: จำนวนนักเรียนเต็ม | H3: มาเรียน | K3: ขาดเรียน | N3: หมายเหตุ
E4: ชาย | F4: หญิง | G4: รวม | H4: ชาย | I4: หญิง | J4: รวม | K4: ชาย | L4: หญิง | M4: รวม
A5: อนุบาล 2/1 | E5: 10 | F5: 6 | G5: =SUM(E5:F5) -> 16 | H5: 8 | I5: 6 | J5: =H5+I5 -> 14 | K5: =E5-H5 -> 2 | L5: =F5-I5 -> 0 | M5: =G5-J5 -> 2
A6: อนุบาล 2/2 | E6: 11 | F6: 6 | G6: =SUM(E6:F6) -> 17 | H6: 11 | I6: 6 | J6: 17 | K6: =E6-H6 -> 0 | L6: 0 | M6: 0
A7: รวมอนุบาล 2 | E7: =SUM(E5:E6) -> 21 | F7: =SUM(F5:F6) -> 12 | G7: =SUM(G5:G6) -> 33 | H7: =SUM(H5:H6) -> 19 | I7: =SUM(I5:I6) -> 12 | J7: 31 | K7: 2 | L7: 0 | M7: =G7-J7 -> 2
A8: อนุบาล 3/1 | E8: 13 | F8: 11 | G8: =SUM(E8:F8) -> 24 | H8: 11 | I8: 9 | J8: =H8+I8 -> 20 | K8: 2 | L8: 2 | M8: 4
A9: อนุบาล 3/2 | E9: 14 | F9: 10 | G9: =SUM(E9:F9) -> 24 | H9: 13 | I9: 8 | J9: =H9+I9 -> 21 | K9: 1 | L9: 2 | M9: 3 | Q9: คลิกปุ่มด้านบนเพื่อลบจำนวนนักเรียนที่มาเรียนข้อมูลเดิม เพื่อกรอกจำนวนนักเรียนที่มาเรียนในวันนี้
A10: รวมอนุบาล 3 | E10: =SUM(E8:E9) -> 27 | F10: =SUM(F8:F9) -> 21 | G10: =SUM(G8:G9) -> 48 | H10: =SUM(H8:H9) -> 24 | I10: =SUM(I8:I9) -> 17 | J10: =H10+I10 -> 41 | K10: 3 | L10: 4 | M10: 7
A11: รวมก่อนประถม | E11: =E7+E10 -> 48 | F11: =F7+F10 -> 33 | G11: =SUM(E11:F11) -> 81 | H11: =H7+H10 -> 43 | I11: =I7+I10 -> 29 | J11: =H11+I11 -> 72 | K11: =E11-H11 -> 5 | L11: 4 | M11: 9
A12: ประถมศึกษาปีที่ 1/1 | E12: 17 | F12: 16 | G12: =SUM(E12:F12) -> 33 | H12: 17 | I12: 15 | J12: 32 | K12: 0 | L12: 1 | M12: 1
A13: ประถมศึกษาปีที่ 1/2 | E13: 20 | F13: 14 | G13: =SUM(E13:F13) -> 34 | H13: 18 | I13: 11 | J13: 29 | K13: 2 | L13: 3 | M13: 5
A14: ประถมศึกษาปีที่ 1/3 | E14: 18 | F14: 15 | G14: =SUM(E14:F14) -> 33 | H14: 18 | I14: 15 | J14: 33 | K14: 0 | L14: 0 | M14: 0
A15: ประถมศึกษาปีที่ 1/4 | E15: 17 | F15: 16 | G15: =SUM(E15:F15) -> 33 | H15: 17 | I15: 16 | J15: 33 | K15: 0 | L15: 0 | M15: 0
A16: รวมประถมศึกษาปีที่ 1 | E16: =SUM(E12:E15) -> 72 | F16: =SUM(F12:F15) -> 61 | G16: =SUM(G12:G15) -> 133 | H16: =SUM(H12:H15) -> 70 | I16: 57 | J16: 127 | K16: 2 | L16: 4 | M16: 6
A17: ประถมศึกษาปีที่ 2/1 | E17: 16 | F17: 17 | G17: =SUM(E17:F17) -> 33 | H17: 15 | I17: 15 | J17: 30 | K17: 1 | L17: 2 | M17: 3
A18: ประถมศึกษาปีที่ 2/2 | E18: 14 | F18: 19 | G18: =SUM(E18:F18) -> 33 | H18: 13 | I18: 17 | J18: 30 | K18: 1 | L18: 2 | M18: 3
A19: ประถมศึกษาปีที่ 2/3 | E19: 17 | F19: 15 | G19: =SUM(E19:F19) -> 32 | H19: 17 | I19: 15 | J19: 32 | K19: 0 | L19: 0 | M19: 0
A20: ประถมศึกษาปีที่ 2/4 | E20: 17 | F20: 15 | G20: =SUM(E20:F20) -> 32 | H20: 17 | I20: 15 | J20: 32 | K20: 0 | L20: 0 | M20: 0
A21: รวมประถมศึกษาปีที่ 2 | E21: =SUM(E17:E20) -> 64 | F21: =SUM(F17:F20) -> 66 | G21: =SUM(G17:G20) -> 130 | H21: =SUM(H17:H20) -> 62 | I21: 62 | J21: 124 | K21: 2 | L21: 4 | M21: 6
A22: ประถมศึกษาปีที่ 3/1 | E22: 16 | F22: 13 | G22: =SUM(E22:F22) -> 29 | H22: 16 | I22: 11 | J22: 27 | K22: =E22-H22 -> 0 | L22: 2 | M22: 2
A23: ประถมศึกษาปีที่ 3/2 | E23: 15 | F23: 15 | G23: =SUM(E23:F23) -> 30 | H23: 13 | I23: 14 | J23: 27 | K23: 2 | L23: 1 | M23: 3
A24: ประถมศึกษาปีที่ 3/3 | E24: 16 | F24: 12 | G24: =SUM(E24:F24) -> 28 | H24: 16 | I24: 12 | J24: 28 | K24: 0 | L24: 0 | M24: 0
A25: ประถมศึกษาปีที่ 3/4 | E25: 15 | F25: 13 | G25: =SUM(E25:F25) -> 28 | H25: 15 | I25: 13 | J25: 28 | K25: 0 | L25: 0 | M25: 0
A26: รวมประถมศึกษาปีที่ 3 | E26: =SUM(E22:E25) -> 62 | F26: =SUM(F22:F25) -> 53 | G26: =SUM(G22:G25) -> 115 | H26: =SUM(H22:H25) -> 60 | I26: 50 | J26: 110 | K26: 2 | L26: 3 | M26: 5
A27: ประถมศึกษาปีที่ 4/1 | E27: 21 | F27: 14 | G27: =SUM(E27:F27) -> 35 | H27: 18 | I27: 14 | J27: 32 | K27: 3 | L27: 0 | M27: 3
A28: ประถมศึกษาปีที่ 4/2 | E28: 16 | F28: 16 | G28: =SUM(E28:F28) -> 32 | H28: 15 | I28: 14 | J28: 29 | K28: 1 | L28: 2 | M28: 3
A29: ประถมศึกษาปีที่ 4/3 | E29: 12 | F29: 17 | G29: =SUM(E29:F29) -> 29 | H29: 12 | I29: 17 | J29: 29 | K29: 0 | L29: 0 | M29: 0
A30: ประถมศึกษาปีที่ 4/4 | E30: 16 | F30: 16 | G30: =SUM(E30:F30) -> 32 | H30: 16 | I30: 16 | J30: 32 | K30: 0 | L30: 0 | M30: 0
A31: รวมประถมศึกษาปีที่ 4 | E31: =SUM(E27:E30) -> 65 | F31: =SUM(F27:F30) -> 63 | G31: 128 | H31: =SUM(H27:H30) -> 61 | I31: 61 | J31: 122 | K31: 4 | L31: 2 | M31: 6
A32: ประถมศึกษาปีที่ 5/1 | E32: 11 | F32: 12 | G32: =SUM(E32:F32) -> 23 | H32: 9 | I32: 12 | J32: 21 | K32: 2 | L32: 0 | M32: 2
A33: ประถมศึกษาปีที่ 5/2 | E33: 15 | F33: 12 | G33: =SUM(E33:F33) -> 27 | H33: 14 | I33: 11 | J33: 25 | K33: 1 | L33: 1 | M33: 2
A34: ประถมศึกษาปีที่ 5/3 | E34: 18 | F34: 7 | G34: =SUM(E34:F34) -> 25 | H34: 18 | I34: 7 | J34: 25 | K34: 0 | L34: 0 | M34: 0
A35: ประถมศึกษาปีที่ 5/4 | E35: 13 | F35: 14 | G35: =SUM(E35:F35) -> 27 | H35: 13 | I35: 14 | J35: 27 | K35: 0 | L35: 0 | M35: 0
A36: รวมประถมศึกษาปีที่ 5 | E36: =SUM(E32:E35) -> 57 | F36: =SUM(F32:F35) -> 45 | G36: 102 | H36: =SUM(H32:H35) -> 54 | I36: 44 | J36: 98 | K36: 3 | L36: 1 | M36: 4
A37: ประถมศึกษาปีที่ 6/1 | E37: 17 | F37: 16 | G37: =SUM(E37:F37) -> 33 | H37: 17 | I37: 15 | J37: 32 | K37: 0 | L37: 1 | M37: 1
A38: ประถมศึกษาปีที่ 6/2 | E38: 12 | F38: 18 | G38: =SUM(E38:F38) -> 30 | H38: 12 | I38: 16 | J38: 28 | K38: 0 | L38: 2 | M38: 2
A39: ประถมศึกษาปีที่ 6/3 | E39: 16 | F39: 13 | G39: =SUM(E39:F39) -> 29 | H39: 16 | I39: 13 | J39: 29 | K39: 0 | L39: 0 | M39: 0
A40: ประถมศึกษาปีที่ 6/4 | E40: 15 | F40: 13 | G40: =SUM(E40:F40) -> 28 | H40: 15 | I40: 13 | J40: 28 | K40: 0 | L40: 0 | M40: 0
A41: รวมประถมศึกษาปีที่ 6 | E41: =SUM(E37:E40) -> 60 | F41: =SUM(F37:F40) -> 60 | G41: =SUM(G37:G40) -> 120 | H41: =SUM(H37:H40) -> 60 | I41: =SUM(I37:I40) -> 57 | J41: 117 | K41: 0 | L41: 3 | M41: 3
A42: รวมประถม | E42: =SUM(E16,E21,E26,E31,E36,E41) -> 380 | F42: =SUM(F16,F21,F26,F31,F36,F41) -> 348 | G42: =SUM(G16,G21,G26,G31,G36,G41) -> 728 | H42: =SUM(H16,H21,H26,H31,H36,H41) -> 367 | I42: =SUM(I16,I21,I26,I31,I36,I41) -> 331 | J42: =H42+I42 -> 698 | K42: 13 | L42: 17 | M42: 30
A43: มัธยมศึกษาปีที่ 1/1 | E43: 14 | F43: 17 | G43: =SUM(E43:F43) -> 31 | H43: 11 | I43: 16 | J43: 27 | K43: 3 | L43: 1 | M43: 4
A44: มัธยมศึกษาปีที่ 1/2 | E44: 13 | F44: 18 | G44: =SUM(E44:F44) -> 31 | H44: 13 | I44: 15 | J44: 28 | K44: 0 | L44: 3 | M44: 3
A45: มัธยมศึกษาปีที่ 1/3 | E45: 12 | F45: 19 | G45: =SUM(E45:F45) -> 31 | H45: 12 | I45: 19 | J45: 31 | K45: 0 | L45: 0 | M45: 0
A46: มัธยมศึกษาปีที่ 1/4 | E46: 12 | F46: 18 | G46: =SUM(E46:F46) -> 30 | H46: 12 | I46: 18 | J46: 30 | K46: 0 | L46: 0 | M46: 0
A47: รวมมัธยมศึกษาปีที่ 1 | E47: =SUM(E43:E46) -> 51 | F47: =SUM(F43:F46) -> 72 | G47: 123 | H47: 48 | I47: 68 | J47: 116 | K47: 3 | L47: 4 | M47: 7
A48: มัธยมศึกษาปีที่ 2/1 | E48: 17 | F48: 19 | G48: =SUM(E48:F48) -> 36 | H48: 16 | I48: 16 | J48: 32 | K48: 1 | L48: 3 | M48: 4
A49: มัธยมศึกษาปีที่ 2/2 | E49: 15 | F49: 16 | G49: =SUM(E49:F49) -> 31 | H49: 14 | I49: 15 | J49: 29 | K49: 1 | L49: 1 | M49: 2 | R49: ชุด ก (ห้อง 1 ห้อง 2) | S49: ชุด ข (ห้อง 3 ห้อง 4)
A50: มัธยมศึกษาปีที่ 2/3 | E50: 14 | F50: 17 | G50: =SUM(E50:F50) -> 31 | H50: 14 | I50: 17 | J50: 31 | K50: 0 | L50: 0 | M50: 0 | R50: ออนแฮนด์ | S50: โรงเรียน
A51: มัธยมศึกษาปีที่ 2/4 | E51: 17 | F51: 13 | G51: =SUM(E51:F51) -> 30 | H51: 17 | I51: 13 | J51: 30 | K51: 0 | L51: 0 | M51: 0 | Q51: จำนวน | R51: =J12+J13+J17+J18+J22+J23+J27+J28+J32+J33+J37+J38+J43+J44+J48+J49+J53+J54 -> 510 | S51: =J59-R51 -> 612
A52: รวมมัธยมศึกษาปีที่ 2 | E52: =SUM(E48:E51) -> 63 | F52: =SUM(F48:F51) -> 65 | G52: 128 | H52: 61 | I52: 61 | J52: 122 | K52: 2 | L52: 4 | M52: 6
A53: มัธยมศึกษาปีที่ 3/1 | E53: 15 | F53: 11 | G53: =SUM(E53:F53) -> 26 | H53: 14 | I53: 11 | J53: 25 | K53: 1 | L53: 0 | M53: 1 | Q53: ร้อยละ | R53: =R51*100/J59 -> 45.45454545 | S53: =S51*100/J59 -> 54.54545455
A54: มัธยมศึกษาปีที่ 3/2 | E54: 14 | F54: 15 | G54: =SUM(E54:F54) -> 29 | H54: 13 | I54: 14 | J54: 27 | K54: 1 | L54: 1 | M54: 2
A55: มัธยมศึกษาปีที่ 3/3 | E55: 17 | F55: 14 | G55: =SUM(E55:F55) -> 31 | H55: 17 | I55: 14 | J55: 31 | K55: 0 | L55: 0 | M55: 0 | R55: ชุด ข (ห้อง 3 ห้อง 4) | S55: ชุด ก (ห้อง 1 ห้อง 2)
A56: มัธยมศึกษาปีที่ 3/4 | E56: 14 | F56: 17 | G56: =SUM(E56:F56) -> 31 | H56: 14 | I56: 17 | J56: 31 | K56: 0 | L56: 0 | M56: 0 | R56: ออนแฮนด์ | S56: โรงเรียน | V56: \
A57: รวมมัธยมศึกษาปีที่ 3 | E57: =SUM(E53:E56) -> 60 | F57: =SUM(F53:F56) -> 57 | G57: 117 | H57: =SUM(H53:H56) -> 58 | I57: =SUM(I53:I56) -> 56 | J57: =H57+I57 -> 114 | K57: =E57-H57 -> 2 | L57: 1 | M57: 3 | Q57: จำนวน | R57: =J14+J15+J19+J20+J24+J25+J29+J30+J34+J35+J39+J40+J45+J46+J50+J51+J55+J56 -> 540 | S57: =J59-R57 -> 582
A58: รวมมัธยม | E58: =SUM(E47,E52,E57) -> 174 | F58: =SUM(F47,F52,F57) -> 194 | G58: =SUM(G47,G52,G57) -> 368 | H58: =SUM(H47,H52,H57) -> 167 | I58: 185 | J58: 352 | K58: 7 | L58: 9 | M58: 16
A59: รวมทั้งหมด | E59: =SUM(E11,E42,E58) -> 602 | F59: =SUM(F11,F42,F58) -> 575 | G59: =SUM(G11,G42,G58) -> 1177 | H59: =SUM(H11,H42,H58) -> 577 | I59: =SUM(I11,I42,I58) -> 545 | J59: =H59+I59 -> 1122 | K59: =E59-H59 -> 25 | L59: 30 | M59: 55 | N59: คิดเป็นร้อยละ | O59: =J59*100/G59 -> 95.3271028 | Q59: ร้อยละ | R59: =R57*100/J59 -> 48.12834225 | S59: =S57*100/J59 -> 51.87165775
A61: บันทึกประจำวัน | C61: ................................................................................................................................................................................................................................... | Q61: **หมายเหตุ นำข้อมูลไปเขียนในบันทึกประจำวัน (กรณีสลับวันเรียน)
A62: ..........................................................................................................................................................................................................................................................................
A65: ลงชื่อ | G65: ลงชื่อ | M65: ลงชื่อ
A66: (นางสาวเพ็ญนภา ทนทาน) | G66: (นางพัทธนันท์ เกียรติ์ภูมิพัฒน์) | M66: (นางสาวิตตรี บางวัด)
A67: ลงชื่อ | G67: ลงชื่อ | M67: ลงชื่อ
A68: (นางชนรดา ชัยมงคล) | G68: (นายภูมินทร์ ขุนเณร) | M68: (นายสมบูรณ์ เตียนขุนทด)
A69: ลงชื่อ | G69: ลงชื่อ | M69: ลงชื่อ
A70: (นางสาวจีรวรรณ ชัยวิเศษ) | G70: (นางสาวจริยา คำเกลี้ยง) | M70: (นายสมัย พุเบาะ)
G73: (ดร.พจนพร จิตเจริญทวีโชค)
G74: ผู้อำนวยการโรงเรียนรุจิรพัฒน์ | K74: ผู้ตรวจ
